Workbook

Sheet Cover Page
D1: Add company logo
N2: Version 20.6
B8: Add photo
N13: Notes:
N14: This template may require adjustments by individual operators to meet specific reporting requirements as defined in the site Permit(s)
B29: Annual Performance Report 2020
B31: Permit EPR/CP3535CK
B33: Javelin Park Energy Recovery Facility
B37: Urbaser Environmental Ltd
B39: Year: | C39: 2020
B41: Address: | C41: Javelin Park, Haresfield, Gloucestershire, GL2 7NQ
B43: Tel: | C43: 01452 379886
B45: Email: | C45: info@ubbgloucestershire.co.uk
B47: Prepared by: | C47: Jacob Towl | F47: Position: | G47: Environmental Technician
B49: Approved by: | C49: Dan Pearson | F49: Position: | G49: General Manager
B51: Version: | C51: 1
B53: Issue Date: | C53: 2021-01-29

Sheet Contents
A1: =+'Cover Page'!$B$29 -> Annual Performance Report 2020 | E1: =+'Cover Page'!$B$33 -> Javelin Park Energy Recovery Facility
A3: Contents | K3: Notes:
A4: Section | B4: Subject | H4: Page | K4: Section references and Page nos. to be inserted
B5: Facility Information | H5: 3 | K5: Sections and Subjects may require adjustment by individual operators to meet specific reporting requirements as defined in the sites Permit(s)
B6: Operational Summary | H6: 4
B7: Operational Data | H7: 5
B8: Performance Form 1 | H8: 6
B9: Energy Form 1 | H9: 7
B10: Permit Compliance | H10: 8
B11: Improvements | H11: 11
B12: Public Liaison | H12: 12
B13: Residue Quality - Optional | H13: 14
B14: Emissions to Water | H14: 15
B15: Emissions to Air (periodically monitored) | H15: 16
B16: Emissions to Air (continuously monitored) | H16: 17
B17: Hydrogen Chloride emissions | H17: 18
B18: Sulphur Dioxdie emsissions | H18: 19
B19: Oxides of Notrigen emissions | H19: 20
B20: Total Organic Carbon emissions | H20: 21
B21: Particulate Matter emissions | H21: 22
B22: Carbon Monoxide emissions | H22: 23
B23: Ammonia emissions | H23: 24
A26: Version Control
A27: Section | B27: Information | H27: Date
A28: V1 | B28: Prepared by Jacob Towl, approved by Dan Pearson | H28: 2021-01-29
A34: Distribution
A35: Copy | B35: Name, Role | H35: No.
A36: V1 | B36: Anna Turner, EPR Installation Officer
A44: This report is required under the Industrial Emissions Directive’s Article 55(2) requirements on reporting and public information on waste incineration plants and co-incineration plants, which require the operator to produce an annual report on the functioning and monitoring of the plant and make it available to the public.

Sheet Facility Info
A1: =+'Cover Page'!$B$29 -> Annual Performance Report 2020 | E1: =+'Cover Page'!$B$33 -> Javelin Park Energy Recovery Facility
A3: Plant Description and Design | K3: Notes:
A5: The installation is designed to recover energy from residual municipal waste, and from commercial and industrial waste of a similar nature to residual municipal waste, by incineration. Energy will be recovered from the installation in the form of electricity, which will be exported to the National Grid. The installation is located on a 4.8 hectare site at grid reference 380040,210430, a short distance south of Junction 12 of the M5 motorway in Gloucestershire. The village of Haresfield is located approximately 1.0 km to the east of the site and the Quedgeley Business Park is located approximately 1.5 km to the north of the site on either side of the motorway. The installation will process up to 190,000 tonnes of waste per year (23.75 tonnes per hour) in a single incineration line. The incinerator is of a mass burn moving grate design. Waste will be delivered to the facility by road in covered vehicles or containers and tipped within the main building in the waste reception hall directly into the waste bunker. The waste is stored and mixed in the waste bunker prior to being burnt in the moving grate incinerator plant. | K5: Include summary of plant design, design capacity, no. of combustion lines, electrical and heat capacity and any other general information that descibes the facility, its location and purpose
A20: Summary of Operational Processes and Procedures
A22: Heat from the combustion process is used to generate high pressure steam in a multi stage boiler plant which is integral to the combustion process. The high pressure steam is fed to a steam turbine to generate electricity. The ERF has a total capacity of approximately 65.3 MW (thermal input) and is capable of generating up to 17.4 MWe of electrical power, of which up to 14.5 MW will be exported to the National Grid. Provision has been made in the design for the plant to be capable of supplying heat in the form of steam or hot water, once a viable heat user becomes available to take the heat as an output. The furnace design ensures that a temperature of at least 850°C for a period of at least two seconds is achieved in the combustion chamber. To ensure that the temperature does not fall below 850°C, auxiliary burners firing low sulphur fuel oil are automatically triggered by online process monitoring equipment. The auxiliary burners are also used to achieve and maintain the minimum furnace temperature during start up and shutdown periods. Combustion gases are cleaned before they are released to atmosphere. There are four components to the flue gas cleaning and abatement technique: • Selective Non-Catalytic Reduction (SNCR), involving the injection of ammonia into the combustion chamber, provides for the abatement of nitrogen oxides; • hydrated lime reagent, injected to neutralise acid gas compounds; • activated carbon, injected to absorb mercury, dioxins and furans; and • bag filtration to remove fine particulates. The residues which are collected on the bag filters are directed to a residues silo. Part of the residues are recycled to the reagent injection points to ensure maximum usage of the lime content. Cleaned flue gases exiting the abatement system of the incinerator line are discharged through a 70 m tall stack. Exhaust flue gases are continuously monitored for particulate matter, oxides of nitrogen, sulphur dioxide, carbon monoxide, total organic carbon, hydrogen chloride and ammonia Monitoring for heavy metals, dioxins, nitrous oxide and hydrogen fluoride is carried out periodically. Under normal circumstances there are no liquid effluent emissions from the installation. Although some rainwater is harvested for use in the process, the site has a net consumption of water. Waste water arisings from boiler blowdown and water treatment backwash are recycled to the Incinerator Bottom Ash (IBA) quench system. Sludge from the IBA waste water pit will be periodically tankered off-site for appropriate treatment. | K22: Include summary of key processes and procedures such as (but not limited to); waste reception, control rooms, grate, bed and bolier, energy & heat generation, cooling systems, residue management, emission controls, health and safety systems, maintenance

Sheet Operational Summary
A1: =+'Cover Page'!$B$29 -> Annual Performance Report 2020 | E1: =+'Cover Page'!$B$33 -> Javelin Park Energy Recovery Facility
A3: Summary of Plant Operations and Maintenance during the reporting year | K3: Notes:
A5: The plant continued to operate through it's first year since service commencement in October 2019, and underwent it's first planned major outage in September/October 2020 in which a number of maintenance activites were carried out. | K5: Include summary of key operational and/or mainteanance activity undertaken in the year, such as any major component upgrades and/or replacements
A29: Summary of Residue Handling for the reporting year
A31: IBA and APCr tests were carried out on a monthly basis in line with the ESA Protocol, with no samples exceeding hazardous property thresholds. All samples were also compliant with the permit conditions. IBA has been sent to Ilkeston for processing and recycling and APCr has been sent to hazardous landfill in Peterborough. | K31: Include in here a summary of residue handling regimes and destinations

Sheet Operational Data
A1: =+'Cover Page'!$B$29 -> Annual Performance Report 2020 | E1: =+'Cover Page'!$B$33 -> Javelin Park Energy Recovery Facility
A3: Operational Data | K3: Notes:
A4: Plant Size | B4: 190000 | D4: tonnes pa | E4: 65 | F4: MWth | G4: 17 | H4: MWe | K4: * - RDF to include SRF
A5: No. of combustion lines | B5: 1 | D5: No. of Turbines: | F5: 1 | K5: ** - CHP plants only
K6: 2020 updates include; heat in MWh, water in Litres, NCV in MJ/kg
A7: Waste types received | B7: Unit | C7: Q1 | D7: Q2 | E7: Q3 | F7: Q4 | G7: Year Total | H7: %
A8: Household / Local Authority | B8: tonnes | C8: 32375.14 | D8: 31303.52 | E8: 33393.04 | F8: 33386.36 | G8: =SUM(C8:F8) -> 130458.06 | H8: =IF(G8>0,G8/$G$18,"-") -> 0.71230312 | K8: Availabiity Definition: 'the availability of a line is to be calculated by the number of hours the line reported Continuously Monitored emission levels to the Regulator through the calendar year divided by the total number of hours in that year. The overall plant availability is calculated as the Mean of all lines in the plant. For clarity this includes periods of Other Than Normal Operating Conditions (OTNOC) and abnormal operation.' Rationale: The primary function of an Energy from Waste facility is the disposal of waste. It follows therefore that the availability of a plant is determined by the period of time a facility spends undertaking this activity.
A9: Commercial & Industrial | C9: 15985.56 | D9: 10171.06 | E9: 12310.86 | F9: 14224.1 | G9: =SUM(C9:F9) -> 52691.58 | H9: 0.28769688
A10: Hazardous | G10: 0 | H10: -
A11: Clinical | G11: 0 | H11: -
A12: Waste wood (biomass) | G12: 0 | H12: -
A13: Refuse Derived Fuel * - H'hold/LA | G13: =SUM(C13:F13) -> 0 | H13: -
A14: Refuse Derived Fuel * - C&I | G14: 0 | H14: -
A15: Other [Please specify] | G15: 0 | H15: -
A16: Other [Please specify]
A17: Other [Please specify]
A18: Total waste received | C18: =SUM(C8:C17) -> 48360.7 | D18: =SUM(D8:D17) -> 41474.58 | E18: =SUM(E8:E17) -> 45703.9 | F18: =SUM(F8:F17) -> 47610.46 | G18: =SUM(G8:G17) -> 183149.64 | H18: 1
A19: Rejected Waste | E19: 1 | F19: 5 | G19: =SUM(C19:F19) -> 6 | H19: =IF(G19>0,G19/$G$18,"-") -> 3.276009715e-05
A20: Unprocessed waste transferred out | G20: =SUM(C20:F20) -> 0 | H20: =IF(G20>0,G20/$G$18,"-") -> -
A21: Total waste combusted | C21: =C18-SUM(C19:C20) -> 48360.7 | D21: =D18-SUM(D19:D20) -> 41474.58 | E21: 45702.9 | F21: 47605.46 | G21: =SUM(C21:F21) -> 183143.64 | H21: =IF(G21>0,G21/$G$18,"-") -> 0.9999672399
A23: Energy Useage / Export | B23: Unit | C23: Q1 | D23: Q2 | E23: Q3 | F23: Q4 | G23: Year Total | H23: KWh/te
A24: Power Generated | B24: MWh | C24: 36827.6 | D24: 30538.6 | E24: 35904.3 | F24: 35628.4 | G24: =SUM(C24:F24) -> 138898.9 | H24: =IF(G24>0,G24*1000/$G$21,"-") -> 758.4150888
A25: Power Exported | C25: 32874.8 | D25: 27255.6 | E25: 32139 | F25: 29738.2 | G25: =SUM(C25:F25) -> 122007.6 | H25: =IF(G25>0,G25*1000/$G$21,"-") -> 666.1852959
A26: Power Used on site | C26: 3879.98 | D26: 3436.15 | E26: 3581.8 | F26: 3471.28 | G26: =SUM(C26:F26) -> 14369.21 | H26: =IF(G26>0,G26*1000/$G$21,"-") -> 78.45868958
A27: Power Imported | C27: 132.3 | D27: 399.5 | E27: 139.7 | F27: 449.8 | G27: 1121.3 | H27: =IF(G27>0,G27*1000/$G$21,"-") -> 6.122516731
A28: Parasitic Load | B28: % | C28: =IF(C24>0,1-C25/(C24+C27),"-") -> 0.1105278964 | D28: =IF(D24>0,1-D25/(D24+D27),"-") -> 0.1190279946 | E28: =IF(E24>0,1-E25/(E24+E27),"-") -> 0.1083398069 | F28: =IF(F24>0,1-F25/(F24+F27),"-") -> 0.1757293878 | G28: =IF(G24>0,1-G25/(G24+G27),"-") -> 0.1286428672
A29: Thermal Energy Produced ** | B29: MWh | G29: =SUM(C29:F29) -> 0 | H29: =IF(G29>0,G29*1000/$G$21,"-") -> -
A30: Thermal Energy Exported ** | G30: 0 | H30: =IF(G30>0,G30*1000/$G$21,"-") -> -
A31: R1 value | C31: <=0.65 | G31: Design / Operational / n/a
A33: Waste Disposal & Recovery | B33: Unit | C33: Q1 | D33: Q2 | E33: Q3 | F33: Q4 | G33: Year Total | H33: % inputs
A34: APC Residues - produced | B34: tonnes | C34: 1323.09 | D34: 1018.99 | E34: 1407.75 | F34: 1243.6 | G34: =SUM(C34:F34) -> 4993.43 | H34: =IF(G34>0,G34/$G$21,"-") -> 0.02726510186
A35: IBA - produced | C35: 9792.57 | D35: 7910.74 | E35: 9303.09 | F35: 9275.8 | G35: 36282.2 | H35: =IF(G35>0,G35/$G$21,"-") -> 0.1981078895
A36: Metals recycling | C36: 3032 | D36: 272 | E36: 3252 | F36: 124 | G36: =SUM(C36:F36) -> 6680 | H36: 0.03647410306
A37: Other | C37: 0 | D37: 0 | E37: 0 | F37: 0 | G37: =SUM(C37:F37) -> 0 | H37: -
A38: Other | C38: 0 | D38: 0 | E38: 0 | F38: 0 | G38: 0 | H38: -
A39: Other | C39: 0 | D39: 0 | E39: 0 | F39: 0 | G39: 0 | H39: -
A41: Raw Material Usage | B41: Unit | C41: Q1 | D41: Q2 | E41: Q3 | F41: Q4 | G41: Year Total | H41: kg or Ltr /te
A42: Mains Water | B42: ltrs | C42: 16778250 | D42: 14076420 | E42: 13622030 | F42: 9250000 | G42: =SUM(C42:F42) -> 53726700 | H42: =IF(G42>0,G42/$G$21,"-") -> 293.3582624
A43: Other Water | B43: ltrs | G43: 0 | H43: =IF(G43>0,G43/$G$21,"-") -> -
A44: Ammonia | B44: kgs | C44: 137520 | D44: 114350 | E44: 134730 | F44: 81510 | G44: 468110 | H44: 2.555971914
A45: Urea | B45: kgs | G45: =SUM(C45:F45) -> 0 | H45: -
A46: Activated Carbon | B46: kgs | C46: 8640 | D46: 10070 | E46: 11470 | F46: 11190 | G46: 41370 | H46: 0.22588827
A47: Lime / hydrated lime | B47: kgs | C47: 645360 | D47: 523850 | E47: 704530 | F47: 621190 | G47: 2494930 | H47: 13.62280448
A48: Fuel oil | B48: ltrs | C48: 72235.29 | D48: 202941.18 | E48: 42235.29 | F48: 184150.11 | G48: 501561.87 | H48: 2.738625649
A49: Gas | B49: cf | C49: 0 | D49: 0 | E49: 0 | F49: 0 | G49: 0
A50: Other | C50: 0 | D50: 0 | E50: 0 | F50: 0 | G50: 0
A52: Summary | B52: Line/Unit | C52: Q1 | D52: Q2 | E52: Q3 | F52: Q4 | G52: Year Total | J52: Hrs in year
A53: Availability of waste combustion by line, hrs | B53: =+B5 -> 1 | C53: 2101.6 | D53: 1780.2 | E53: 2028.36 | F53: 1899.47 | G53: =SUM(C53:F53) -> 7809.63 | H53: 0.889 | J53: 8760
B54: 2 | G54: 0 | H54: x %
B55: 3 | G55: 0 | H55: x %
B56: 4 | G56: 0 | H56: x %
B57: 5 | G57: =SUM(C57:F57) -> 0 | H57: x %
A58: Overall Availability, mean avg. of all lines, hrs | C58: 2101.6 | D58: 1780.2 | E58: 2028.36 | F58: 1899.47 | G58: =AVERAGE(G53:G57) -> 1561.926 | H58: 0.889
A59: Hours of turbine operations, hrs | B59: 1 | C59: 2089.1 | D59: 1750.75 | E59: 2025.6 | F59: 1798.1 | G59: 7663.55 | H59: 0.872
A60: Hours of turbine operations, hrs | B60: 2 | G60: 0 | H60: x %
A61: Hours of heat / steam export | G61: 0 | H61: =IF(B61>0,G60/J53,"n/a") -> n/a
A62: Net Calorific Value of waste | B62: MJ/kg | H62: -
A63: Abnormal Events | B63: qty. | G63: 0 | H63: =IF(G63>0,"yes","no") -> no
A64: Abnormal operation | B64: hours | G64: 0 | H64: =+(G64)/J53 -> 0
A65: Permit Breaches | B65: qty. | E65: 2 | F65: 1 | G65: 3 | H65: =IF(G65>0,"yes","no") -> yes

Sheet Perf. Form 1
A1: =+'Cover Page'!C39 -> 2020 | B1: Annual Reporting Performance Form 1
A3: =+'Cover Page'!B31 -> Permit EPR/CP3535CK | F3: Operator: | G3: =+'Cover Page'!B37:I37 -> 0
A4: Facility: | B4: =+'Cover Page'!B33:I33 -> Javelin Park Energy Recovery Facility | F4: Form: | G4: Performance 1
A6: Reporting Period from: | D6: 2020-01-01 | F6: to: | G6: 2020-12-31
A8: =+A1 -> 2020 | B8: Annual Reporting of Waste Disposal and Recovery
A9: Waste Description | C9: Disposal Route(s) | E9: Disposal Tonnes | G9: Recovery Tonnes | I9: % / tonne of waste incinerated
A10: 1) Hazardous Wastes
A11: APC Residues | C11: Northamptonshire | E11: 5128.16 | I11: =IF((E11+G11)>0,(E11+G11)/'Operational Data'!$G$21, "-") -> 0.02800075394
A12: IBA | I12: =IF((E12+G12)>0,(E12+G12)/'Operational Data'!$G$21, "-") -> -
I13: =IF((E13+G13)>0,(E13+G13)/'Operational Data'!$G$21, "-") -> -
I14: =IF((E14+G14)>0,(E14+G14)/'Operational Data'!$G$21, "-") -> -
A15: Total Hazardous Waste | E15: =SUM(E11:F14) -> 5128.16 | G15: =SUM(G11:H14) -> 0 | I15: =IF((E15+G15)>0,(E15+G15)/'Operational Data'!$G$21, "-") -> 0.02800075394
A17: 2) Non-Hazardous Wastes
A18: IBA | C18: Derbyshire | G18: 41227.42 | I18: =IF((E18+G18)>0,(E18+G18)/'Operational Data'!$G$21, "-") -> 0.2251097554
A19: Ferrous Metal | C19: Derbyshire | G19: 1405.52 | I19: =IF((E19+G19)>0,(E19+G19)/'Operational Data'!$G$21, "-") -> 0.007674413373
A20: Process Water | C20: Gloucestershire | E20: 16723.24 | I20: =IF((E20+G20)>0,(E20+G20)/'Operational Data'!$G$21, "-") -> 0.09131215258
A21: Non-Ferrous | C21: Derbyshire | G21: 57.32 | I21: =IF((E21+G21)>0,(E21+G21)/'Operational Data'!$G$21, "-") -> 0.0003129783813
I22: =IF((E22+G22)>0,(E22+G22)/'Operational Data'!$G$21, "-") -> -
A23: Total Non-Hazardous Waste | E23: =SUM(E18:F22) -> 16723.24 | G23: =SUM(G18:H22) -> 42690.26 | I23: =IF((E23+G23)>0,(E23+G23)/'Operational Data'!$G$21, "-") -> 0.3244092997
A24: TOTAL WASTE | E24: =+E23+E15 -> 21851.4 | G24: =+G23+G15 -> 42690.26 | I24: =IF((E24+G24)>0,(E24+G24)/'Operational Data'!$G$21, "-") -> 0.3524100537
A26: Operator’s comments :
A31: =+A1 -> 2020 | B31: Annual Reporting of Water and Other Raw Material Usage
A32: Raw Material | E32: Usage | G32: Unit | H32: Specific Useage | J32: Unit
A33: Mains Water | E33: =+'Operational Data'!G42 -> 53726700 | G33: ltrs | H33: =IF(E33>0,E33/'Operational Data'!$G$21,"-") -> 293.3582624 | J33: ltrs/te
A34: Total Water | E34: =+'Operational Data'!G43+'Operational Data'!G42 -> 53726700 | G34: ltrs | H34: =IF(E34>0,E34/'Operational Data'!$G$21,"-") -> 293.3582624 | J34: ltrs/te
A35: Urea / Ammonia | E35: =+'Operational Data'!G44 -> 468110 | G35: kg | H35: =IF(E35>0,E35/'Operational Data'!$G$21,"-") -> 2.555971914 | J35: kg/te
A36: Activated Carbon | E36: =+'Operational Data'!G46 -> 41370 | G36: kg | H36: =IF(E36>0,E36/'Operational Data'!$G$21,"-") -> 0.22588827 | J36: kg/te
A37: Lime / hydrated lime / Sodium Bicarb. | E37: =+'Operational Data'!G47 -> 2494930 | G37: kg | H37: =IF(E37>0,E37/'Operational Data'!$G$21,"-") -> 13.62280448 | J37: kg/te
A39: Operator’s comments :
A43: =+A31 -> 2020 | B43: Annual Reporting of other performance indicators
A44: Parameter | C44: Results by Line
C45: A1 | D45: A2 | E45: A3 | F45: A4 | G45: A5 | I45: Turbine 1 | J45: Turbine 2
A46: Operating hours for the year, hours | C46: 7809.63 | I46: 7664
A47: Number of periods of abnormal operation, qty.
A48: Cumulative hours of abnormal operation for this year, hours
A50: Operator’s comments :
A54: Signed: | G54: Date:

Sheet Energy Form 1
A1: =+'Cover Page'!C39 -> 2020 | B1: Annual Reporting of Energy Usage/Export
A3: =+'Cover Page'!B31 -> Permit EPR/CP3535CK | F3: Operator: | G3: Urbaser Environmental Ltd
A5: Facility: | B5: =+'Cover Page'!B33:I33 -> Javelin Park Energy Recovery Facility | F5: Form: | G5: Energy 1
A7: Reporting Period from: | D7: =+'Perf. Form 1'!D6:E6 -> 2020-01-01 | F7: to: | G7: =+'Perf. Form 1'!G6:H6 -> 2020-12-31
A9: Energy Source | D9: Energy Usage | F9: Unit | G9: Specific Useage (KWh/tonne incinerated
A10: Electricity Produced | D10: =+'Operational Data'!G24 -> 138898.9 | F10: MWh | G10: =+'Operational Data'!H24 -> 758.4150888
A11: Electricity Imported | D11: =+'Operational Data'!G27 -> 1121.3 | F11: MWh | G11: =+'Operational Data'!H27 -> 6.122516731
A12: Electricity Exported | D12: =+'Operational Data'!G25 -> 122007.6 | F12: MWh | G12: =+'Operational Data'!H25 -> 666.1852959
A13: Gas Oil | D13: 426.3 | F13: tonnes
A14: Steam/hot water exported | D14: =+'Operational Data'!G30 -> 0 | F14: GWh | G14: =+'Operational Data'!H30 -> -
A18: Operator’s comments :
A29: Signed: | G29: Date:

Sheet Permit Compliance
A1: =+'Cover Page'!$B$29 -> Annual Performance Report 2020 | E1: =+'Cover Page'!$B$33 -> Javelin Park Energy Recovery Facility
A3: Summary of Permit Compliance
A5: Compliance with permit limits for continuously monitored pollutants
A7: The plant met its emission limits as shown in the table below:
A8: Substance | C8: Percentage time compliant during operation | L8: Notes:
C9: Half-hourly limit | F9: Daily limit | L9: Report to 2 decimal places, i.e. xx.xx% Please provide a brief summary of each notification or non-compliance in the table (rather than just referring to notifications that were sent to the Regulator).
A10: Particulates | C10: 1 | F10: 1
A11: Oxides of nitrogen | C11: 1 | F11: 1
A12: Sulphur dioxide | C12: 1 | F12: 1
A13: Carbon monoxide | C13: 0.9982 | F13: 1
A14: Total organic carbon | C14: 1 | F14: 1
A15: Hydrogen chloride | C15: 1 | F15: 1
A19: Summary of any notifications or non-compliances under the permit
A20: Date | B20: Summary of notification or non-compliance [including Line/Reference] | E20: Reason | H20: Measures taken to prevent reoccurrence
A21: 2020-08-07 | B21: CO half hourly breach - Schedule 5 notification sent | E21: Explosion on the grate | H21: Increased waste inspections
A22: 2020-09-26 | B22: CO half hourly breach - Schedule 5 notification sent | E22: Explosion on the grate | H22: Increased waste inspections
A23: 2020-12-15 | B23: CO half hourly breach - Schedule 5 notification sent | E23: Explosion on the grate | H23: Increased waste inspections
A25: Summary of any complaints received and actions taken to resolve them.
A26: Date | B26: Summary of complaint [including Line/Reference] | E26: Reason * | H26: Measures taken to prevent reoccurrence
A27: 2020-01-07 | B27: Burning chemical smell | E27: Odour - unsubstantiated by operator | H27: Continue with daily noise and odour monitoring
A28: 2020-01-22 | B28: Caller reported smoke and odour from Javelin Park | E28: Unsubstantiated by operator. Smoke attributed to stack plume which was noted as visible on daily noise and odour checks, which also did not note of any odour | H28: Continue with daily noise and odour monitoring
A29: 2020-02-23 | B29: Emailer reported terrible smell on 10//02/20 & 03/02/20, along with waste delivery vehicle drivers using horns unnessecarily. Also awoken on 04/02/20 at 4am by a truck delivering waste to site | E29: Odour and Noise. Unsubstantiated. | H29: Continue with daily noise and odour monitoring. Asked complainant to contact as soon as these occur to better substantiate claims in future.
A30: 2020-04-08 | B30: Burning plastic smell and burning garden waste smell, at property 0.5miles from site | E30: Complaint received via EA. Unsubstantiated | H30: Continue with daily noise and odour monitoring
A31: 2020-04-08 | B31: Obnoxious smell in Hardwicke | E31: Odour. Was unsubstantiated as found no odour | H31: Continue with daily noise and odour monitoring
A32: 2020-04-17 | B32: Complained of alarm going off at site and very large humming | E32: Noise. Substantiated by operator, and was explained | H32: Fire pump testing to continue to only be used when needed, and tested on a Frida for a half hour period as requred. Complainant told of likely time they will be able to hear it
A33: 2020-05-21 | B33: White particles in atmosphere | E33: Substantiated by operator. particulates from a refuge vehicle. | H33: Photos and a report was issued to the waste courier and the team instructed to closely monitor the waste courier in future deliverys.
A34: 2020-05-22 | B34: Odour smelt in the morning | E34: Noise & Odour.Unsubstantiated by operator. | H34: Continue with daily noise and odour monitoring. Asked complainant to contact as soon as these occur to better substantiate claims in future.
A35: 2020-05-22 | B35: Very loud noise vibrating continuously lasting half hour | E35: Substantiated by operator, diesel fire pumps' weekly test run, | H35: Apologsed for inconvenience, but reminded fire pumps are needed to be tested weekly for half an hour and are typically done at this time.
A36: 2020-05-23 | B36: Horrible smell on and off on the day of complaint, the resident has had to go back inside the house. | E36: Unsubstantiated by operator.Noise & Odour | H36: Continue with daily noise and odour monitoring. Asked complainant to contact as soon as these occur to better substantiate claims in future.
A37: 2020-06-01 | B37: Venting noise from the incinerator keeping adjacent resident awake with windows closed, went on until the early hours of the morning and was excessive. | E37: Substantiated by operator. From the steam vent valve | H37: Apologised to complainant, however unavoidable when bringing the plant back online and it is not a regular event.
A38: 2020-06-06 | B38: Unpleasant smell wafting across to nearby resident since 9am | E38: Substantiated by operator. Odour, plant off and the wind direction | H38: Continue with daily odour checks, ensure tipping hall reception and exit doors are closed when not in use.
A39: 2020-06-08 | B39: Waste delivery vehicle turning left into the facility - vehicles should not be using this route which passes the local resident under normal circumstances | E39: Substantiated by operator. Access road temporarily closed, had to use the contingency route | H39: Unavoidable due to closure of primary route.
A40: 2020-06-09 | B40: Bad odour at nearby property | E40: Odour. Unsubstantiated by operator. | H40: Continue with daily noise and odour monitoring
A41: 2020-06-11 | B41: Waste delivery vehicle driver complained about ash falling and hitting his cab while accessing the tipping hall, by the shutter door where the conveyor runs overhead | E41: Substantiated by operator, wet ash falling down onto vehicles from conveyors above tipping hall entrance door | H41: Scaffolding built over tipping hall entrance doorway while maintenance being undertaken to stop wet ash falling down
A42: 2020-06-15 | B42: Odour throughout the morning | E42: Unsubstantiated by operator. Unable to detect odour | H42: Continue with daily noise and odour monitoring
A43: 2020-06-21 | B43: Odour smell at nearby property | E43: Unsubstantiated by operator. Unable to detect odour | H43: The Shift leader has confirmed that the all tipping hall doors were closed leading up to and after the complaint and that there were very limited number of vehicles on site that day.
A44: 2020-07-14 | B44: Waste delivery vehicle rasied complaint about IBA falling from scaffold above tipping hall door onto the vehicles. | E44: Substantiated by operator. Wet ash build up on scaffolding and falling below. | H44: IBA cleaned up from scaffold in order to prevent spillage onto road and potentially vehicles outside tipping hall entrance door.
A45: 2020-07-31 | B45: Loud noise and vibration felt within household. | E45: Substantiated by operator. testing of the fire pumps | H45: Explained that we are duty bound to run the pumps for safety reasons, however we suggested that a more appropriate time or day could be used if they so wished.
A46: 2020-09-08 | B46: Odour issue at 2.30pm | E46: Unsubstantiated by operator. Odour, nearby muck spreading | H46: Continue with daily noise and odour monitoring
A47: 2020-09-09 | B47: Noise during the night around 4am | E47: Substantiated by operator. fire pumps need to be run to maintain safety to the systems. | H47: Unavoidable as pumps were required to run
A48: 2020-09-09 | B48: Vibration complaint by resident around 5 miles away, causing resident as well as others in the city great grief. Vibration causing insomnia to resident and many others in city. | E48: Unsubstantiated by operator. Coincided with power outage when the fire pumps were in service in the early morning to maintain safety of the system. This being said it is very unlikely that there were any vibrations particularly being felt 5 miles away. The neighbours of the facility also did not complain about any vibrations only due to the noise caused, which wouldn't impact a property 5 miles away. | H48: Vibration analysis currently taking place at area of complainant to see if a relation can be found to the site.
A49: 2020-10-06 | B49: A caller to the EA reported a smell of burning plastic and are worried about their health. The caller could not see any smoke, only smell it. Caller has not noticed this before, and are about 3 miles east of Gloucester EfW | E49: Unsubstantiated by operator. Was not processing or otherwise burning any waste. | H49: Continue with daily noise and odour monitoring
A50: 10/10 - 11/10 | B50: Complain of noise over the weekend | E50: Substantiated by operator. Fire pumps ran all weekend due to fire in the waste chute that prevented plant from fully coming back online folllowing the annual outage | H50: Unavoidable due to fire in waste chute
A51: 2020-11-16 | B51: Issue with the fire pump sounding. It was also stated that the fire pump has been audible about a dozen times in the last 2-3 weeks which they feel is unacceptable. | E51: Substantiated by operator. Fault with the fire pump system which is being worked on to correct this, but whilst this is happening the fire pump will stay on | H51: Once fault corrected sound will only be heard when weekly testing takes place for half an hour
A52: 2020-12-15 | B52: Regarding fire pump sounded during night of 15th December. | E52: Substantiated by operator. Fire pumps sounded due to blockage in waste chute, and fire pumps used as precaution. | H52: Unavoidable due to fire in the waste chute
A53: 16/12/20 & 17/12/20 | B53: Nearby resident on the 16/12/20 @ 12pm explaining they saw a bin lorry go past the residence on the B4008. On the 17/12/20 @ 11am the same resident saw another bin lory drive past on the B4008 toward Gloucester EfW | E53: Substantiated by operator. Lorry entered from unauthorised route | H53: Vehicles permitted to use this route in this instance
A54: 2020-12-18 | B54: Sound from the fire pumps at 4pm and thought they had been running all day. | E54: Partly substantiated by operator. The fire pump had only been on for around an hour for the obligatory weekly testing of the fire pumps. It is worth noting that this took place at around 4pm compared to the typical 11am testing on a Friday | H54: Explained that it was tested slighlty later in the day than usual

Sheet Improvements
A1: =+'Cover Page'!$B$29 -> Annual Performance Report 2020 | E1: =+'Cover Page'!$B$33 -> Javelin Park Energy Recovery Facility
A3: Summary of Plant Improvements
A5: Summary of any efficiency improvements that have been completed within the year.
A16: Summary of any permit improvement conditions that have been completed within the year and the resulting environmental benefits.
A17: Completed: IC 2 - PM10 and PM2.5 testing carried out to determine size distribution of particulate matter and written report provided demonstrating results IC 3 - Summary of environmental performance of the plant as installed against design parameters. Demonstrated plant has been compliant with daily average ELVs, and below IBA TOC limits. Site procedures have been developed and implemented successfully reducing environmental impacts of the plant IC 5 - Performance and optimisation of SNCR system and combustion settings to minimise NOx emissions within ELVs. Plant has performed well with NOx emissions to air and complied with half hour and daily ELVs. IC 8 - Monitoring approved under PO8 carried out adn written report of impact of noise and vibration from the plant. Demonstrated plant operates within noise limits causing a minimal impact on surrounding environment.
A27: Summary of any changes to the plant or operating techniques which required a variation to the permit and a summary of the resulting environmental impact.
A28: N/A
A38: Summary of any other improvements made to the plant or planned to be made and a summary of the resulting environmental benefits.

Sheet Public Liaison
A1: =+'Cover Page'!$B$29 -> Annual Performance Report 2020 | E1: =+'Cover Page'!$B$33 -> Javelin Park Energy Recovery Facility
A3: Details of Public & Stakeholder Liaison
A5: Summary of events held during the reporting year.
A6: Date | C6: Description
A7: 2020-01-06 | C7: Gloucestershire College Tutor Visit
A9: 2020-01-10 | C9: Board of Directors group visit and tour
A11: 2020-01-14 | C11: Media Day - Various Media Groups
A13: 2020-01-28 | C13: S Moncief Artist - Running Art Workshops
A15: 2020-01-31 | C15: Richard Graham MP - Facility tour
A17: 2020-02-05 | C17: Biffa - Supplier group visit and tour
A19: 2020-02-05 | C19: GCC Procurement
A21: 2020-02-06 | C21: Community group visit and tour
A23: 2020-02-11 | C23: Stoud Civic Society - group visit and tour
A25: 2020-02-19 | C25: Falfield WI - group visit and tour
A27: 2020-02-19 | C27: Stroud Youth Council - group visit and tour
A29: 2020-02-20 | C29: Community group visit and tour
A31: 2020-02-25 | C31: Minchinhampton Pobus Group - group visit and tour
A33: 2020-02-25 | C33: Community group visit and tour
A35: 2020-02-26 | C35: Stonehouse Rotary Club - group visit and tour
A37: 2020-02-27 | C37: Droitwich U3A - group visit and tour
A39: 2020-03-03 | C39: Clearwater Academy - School outreach
A42: List of events planned for next year
A43: Date | C43: Description
A44: TBC | C44: Facility Open Day x2 per year
A46: TBC | C46: GCSE Physics, Chemistry and Design Technology Day Workshops
A48: TBC | C48: Outreach via Zoom, Teams or virtual methods
A50: TBC | C50: Industrial Art workshop
A52: TBC | C52: Facility visits and tours
A54: TBC | C54: Repair and Reuse workshop
A56: TBC | C56: Art exhibition by photo journalist student
A58: TBC | C58: Ask the Professional - Secondary School Careers Event
A60: TBC | C60: CIWM (Chartered Institute of Waste Management) - Meeting, workshop and Facility tour
A62: TBC | C62: CLG Community Liaison Group - meetings
A64: TBC | C64: County Librarians school network meeting - Outreach
A66: If you wish to be involved in the public liasion programme, please contact: info@ubbgloucestershire.co.uk

Sheet Residue Quality
A1: =+'Cover Page'!$B$29 -> Annual Performance Report 2020 | E1: =+'Cover Page'!$B$33 -> Javelin Park Energy Recovery Facility
A3: Residue Quality Monitoring Requirements
A5: Summary of monitoring undertaken and compliance
A6: Twice monthly IBA hazardous property testing took place following the ESA Protocol, along with monthly compliance of IBA and APCr. All samples tested were compliant with the permit conditions and didn't exceed hazardous property thresholds.
A13: Commentary on any specific events
A14: Date & Event | C14: Description
A27: Residue Quality Monitoring Results
A28: Parameter (unit) | C28: Limit | D28: Normal Operation
D29: Bottom ash | F29: APC Residues
A30: Loss on Ignition (average %) | C30: <5% | D30: 0.8
A31: Total Organic Carbon (average %) | C31: <3% | D31: 0.47
A32: No. of Assessments Undertaken | C32: --- | D32: 24 | F32: 12
A33: No. of Hazardous Results | C33: --- | D33: 24
A35: Comments :
A36: The values above are an average of the years results. Monitoring has been compliant with the ESA protocol guidelines and an accredited lab has been used for analysis.

Sheet Water
A1: =+'Cover Page'!$B$29 -> Annual Performance Report 2020 | E1: =+'Cover Page'!$B$33 -> Javelin Park Energy Recovery Facility
A3: Emissions to Water
A5: Summary of monitoring undertaken and compliance
A6: There are no emissions to water
A13: Commentary on any specific events
A14: Date & Event | C14: Description
A22: Emissions to Water / Sewer
A23: Parameter | D23: Monitoring Frequency | G23: Limit | H23: Target | I23: Max. | J23: Average

Sheet Air (periodic)
A1: =+'Cover Page'!$B$29 -> Annual Performance Report 2020 | E1: =+'Cover Page'!$B$33 -> Javelin Park Energy Recovery Facility
A3: Emissions to Air (periodically monitored)
A5: Summary of monitoring undertaken, standards used and compliance | M5: Notes:
A6: Periodic monitoring was carried out by a UKAS and MCERT accredited company and MCERT qualified personnel. The monitoring took place quarterly as per the permit conditions, using british standard reference methods. All results were MCERTS accredited and below the respective ELVs. | M6: Template may require adjustment for any bespoke monitoring requirements of permit.
A9: Results of emissions to air that are periodically monitored
A10: Substance | C10: Ref. Period | D10: Emission Limit Value | F10: Average | M10: User to add additional tables as necessary, depending on whether quarterly or bi-annual reporting is required for the compliance year
F11: A1 | G11: A2 | H11: A3 | I11: A4 | J11: A5
A12: Hydrogen fluoride | C12: 1 hr | D12: 2 mg/m3 | F12: 0.075
A13: Cd and Th and their compounds | C13: 6-8hrs | D13: 0.05 mg/m3 | F13: 0.00049
A14: Hg and its compounds | C14: 6-8hrs | D14: 0.05 mg/m3 | F14: 0.001775
A15: Sb, As, Pb, Cr, Co, Cu, Mn, Ni, V and their compounds | C15: 6-8hrs | D15: 0.5 mg/m3 | F15: 0.0169025
A16: Dioxins & Furans (I-TEQ) | C16: 6-8hrs | D16: 0.1 ng/m3 | F16: 0.0069125
A17: PCBs (WHO-TEQ Humans / Mammals) | C17: 6-8hrs | D17: None set ng/m3 | F17: 0.0006275
A18: PCBs (WHO-TEQ Fish) | C18: 6-8hrs | D18: None set ng/m3 | F18: 2.8625e-05
A19: PCBs (WHO-TEQ Birds) | C19: 6-8hrs | D19: None set ng/m3 | F19: 0.0014075
A20: Dioxins & Furans (WHO-TEQ Humans / Mammals) | C20: 6-8hrs | D20: None set ng/m3 | F20: 0.00694
A21: Dioxins & Furans (WHO-TEQ Fish) | C21: 6-8hrs | D21: None set ng/m3 | F21: 0.007415
A22: Dioxins & Furans (WHO-TEQ Birds) | C22: 6-8hrs | D22: None set ng/m3 | F22: 0.0105925
A23: Anthanthrene | C23: 6-8hrs | D23: None set µg/m3 | F23: 0.015675
A24: Benzo(a)anthracene | C24: 6-8hrs | D24: None set µg/m3 | F24: 0.003175
A25: Benzo(a)pyrene | C25: 6-8hrs | D25: None set µg/m3 | F25: 0.010675
A26: Benzo(b)fluoranthene | C26: 6-8hrs | D26: None set µg/m3 | F26: 0.000675
A27: Benzo(b)naptho(2,1-d) thiophene | C27: 6-8hrs | D27: None set µg/m3 | F27: 0.0009
A28: Benzo(c)phenanthrene | C28: 6-8hrs | D28: None set µg/m3 | F28: 0.0009
A29: Benzo(ghi)perylene | C29: 6-8hrs | D29: None set µg/m3 | F29: 0.003175
A30: Benzo(k)fluoranthene | C30: 6-8hrs | D30: None set µg/m3 | F30: 0.003175
A31: Cholanthrene | C31: 6-8hrs | D31: None set µg/m3 | F31: 0.0359
A32: Chrysene | C32: 6-8hrs | D32: None set µg/m3 | F32: 0.003175
A33: Cyclopenta(cd)pyrene | C33: 6-8hrs | D33: None set µg/m3 | F33: 0.0009
A34: Dibenzo(ai)pyrene | C34: 6-8hrs | D34: None set µg/m3 | F34: 0.001125
A35: Dibenzo(ah)anthracene | C35: 6-8hrs | D35: None set µg/m3 | F35: 0.013175
A36: Fluoranthene | C36: 6-8hrs | D36: None set µg/m3 | F36: 0.02
A37: Indeno(123-cd) pyrene | C37: 6-8hrs | D37: None set µg/m3 | F37: 0.000675
A38: Naphthalene | C38: 6-8hrs | D38: None set µg/m3 | F38: 0.35
A39: Comments :

Sheet Air (CEMS)
A1: =+'Cover Page'!$B$29 -> Annual Performance Report 2020 | I1: =+'Cover Page'!$B$33 -> Javelin Park Energy Recovery Facility
A3: Emissions to Air (continously monitored)
P4: Notes:
A5: Summary of monitoring undertaken, standards used and compliance | P5: Template may require adjustment for any bespoke monitoring requirements of permit
A6: Stack gases have been monitored by MCERTS accredited CEMS equipment. The performance of CEMs for these parameters complies with the requirements of BS EN 14181, including the requirements of QAL1, QAL2 and QAL3. | P6: Report to 2 decimal places, i.e. xx.xx%
A11: Results of emissions to air that are continuously monitored (maximum and average values for each line)
A12: Substance | B12: Reference Period | C12: Emission Limit Value | D12: A1 | F12: A2 | H12: A3 | J12: A4 | L12: A5
D13: Max. | E13: Avg. | F13: Max. | G13: Avg. | H13: Max. | I13: Avg. | J13: Max. | K13: Avg. | L13: Max. | M13: Avg.
A14: Oxides of nitrogen | B14: Daily mean | C14: 200 mg/m3 | D14: 187 | E14: 143.99
B15: ½ hourly mean | C15: 400 mg/m3 | D15: 304 | E15: 143.67
A16: Particulates | B16: Daily mean | C16: 10 mg/m3 | D16: 0.19 | E16: 0.14
B17: ½ hourly mean | C17: 30 mg/m3 | D17: 1 | E17: 0
A18: Total Organic Carbon | B18: Daily mean | C18: 10 mg/m3 | D18: 1 | E18: 0.71
B19: ½ hourly mean | C19: 20 mg/m3 | D19: 3 | E19: 0.25
A20: Hydrogen chloride | B20: Daily mean | C20: 10 mg/m3 | D20: 9 | E20: 5.64
B21: ½ hourly mean | C21: 60 mg/m3 | D21: 44 | E21: 6.17
A22: Sulphur dioxide | B22: Daily mean | C22: 50 mg/m3 | D22: 31 | E22: 9.64
B23: ½ hourly mean | C23: 200 mg/m3 | D23: 124 | E23: 9.75
A24: Carbon monoxide | B24: Daily mean | C24: 50 mg/m3 | D24: 8 | E24: 0.03
B25: ½ hourly mean * | C25: 100 mg/m3 * | D25: 322 | E25: 0.08
A27: Ammonia | B27: Daily mean | C27: No limit set | D27: 4 | E27: 1.34
A28: * = delete or amend as appropriate
A29: Comments :
A30: Averages are average of all months, maximum values are maximum reported value in year.

Sheet HCl
A1: =+'Cover Page'!$B$29 -> Annual Performance Report 2020 | E1: =+'Cover Page'!$B$33 -> Javelin Park Energy Recovery Facility
A3: Monitoring of Hydrogen Chloride emissions | D3: Whole Installation | G3: See Notes in Cell Q3 | J3: =+A3 -> Monitoring of Hydrogen Chloride emissions | N3: Per Combustion Line | Q3: Notes:
Q4: User to add logic to complete Whole installation, Table A5:G18. From the data in Per Combustion Line, Table J6:O79, subject to No. of lines installed
A5: mg/Nm3 | B5: 1/2 Hourly Reference Periods | E5: Daily Reference Periods
A6: =+'Cover Page'!C39 -> 2020 | B6: 1/2 hourly HCl ELV | C6: Monthly 1/2 hourly mean | D6: Highest 1/2 hourly maximum | E6: Daily HCl ELV | F6: Monthly daily mean | G6: Highest daily maximum | J6: =+A6 -> 2020 | K6: mg/Nm3 | L6: Monthly 1/2 hourly mean | M6: Monthly 1/2 hourly maximum | N6: Monthly daily mean | O6: Monthly daily maximum
A7: Jan | B7: 60 | C7: 7 | D7: 44 | E7: 10 | F7: 6.69 | G7: 8 | J7: A1 | K7: Jan | L7: 7 | M7: 44 | N7: 6.69 | O7: 8
A8: Feb | B8: 60 | C8: 7 | D8: 20 | E8: 10 | F8: 6.92 | G8: 8 | K8: Feb | L8: 7 | M8: 20 | N8: 6.92 | O8: 8
A9: Mar | B9: 60 | C9: 8 | D9: 40 | E9: 10 | F9: 7.77 | G9: 8 | K9: Mar | L9: 8 | M9: 40 | N9: 7.77 | O9: 8 | Q9: Whole Installation table A5:G18:
A10: Apr | B10: 60 | C10: 6 | D10: 17 | E10: 10 | F10: 5.9 | G10: 8 | K10: Apr | L10: 6 | M10: 17 | N10: 5.9 | O10: 8 | Q10: Mean: for 1/2 hourly and daily periods calculate mean of values across all operational combustion lines for the month
A11: May | B11: 60 | C11: 5 | D11: 10 | E11: 10 | F11: 4.92 | G11: 8 | K11: May | L11: 5 | M11: 10 | N11: 4.92 | O11: 8
A12: Jun | B12: 60 | C12: 6 | D12: 14 | E12: 10 | F12: 6.07 | G12: 8 | K12: Jun | L12: 6 | M12: 14 | N12: 6.07 | O12: 8
A13: Jul | B13: 60 | C13: 6 | D13: 18 | E13: 10 | F13: 6.46 | G13: 8 | K13: Jul | L13: 6 | M13: 18 | N13: 6.46 | O13: 8 | Q13: Maximum: for 1/2 hourly and daily periods use the highest value across all operational combustion lines for the month
A14: Aug | B14: 60 | C14: 8 | D14: 18 | E14: 10 | F14: 8.17 | G14: 9 | K14: Aug | L14: 8 | M14: 18 | N14: 8.17 | O14: 9
A15: Sep | B15: 60 | C15: 5 | D15: 16 | E15: 10 | F15: 4.83 | G15: 8 | K15: Sep | L15: 5 | M15: 16 | N15: 4.83 | O15: 8
A16: Oct | B16: 60 | C16: 5 | D16: 19 | E16: 10 | F16: 4.608 | G16: 7 | K16: Oct | L16: 5 | M16: 19 | N16: 4.608 | O16: 7
A17: Nov | B17: 60 | C17: 5 | D17: 16 | E17: 10 | F17: 5.385 | G17: 7 | K17: Nov | L17: 5 | M17: 16 | N17: 5.385 | O17: 7
A18: Dec | B18: 60 | C18: 6 | D18: 24 | E18: 10 | F18: 6.296 | G18: 8 | K18: Dec | L18: 6 | M18: 24 | N18: 6.296 | O18: 8
K19: Annual | L19: =AVERAGE(L7:L18) -> 6.166666667 | M19: =MAX(M7:M18) -> 44 | N19: =AVERAGE(N7:N18) -> 6.16825 | O19: =MAX(O7:O18) -> 9
J21: =+A6 -> 2020 | K21: mg/Nm3 | L21: Monthly 1/2 hourly mean | M21: Monthly 1/2 hourly maximum | N21: Monthly daily mean | O21: Monthly daily maximum
J22: A2 | K22: Jan
K23: Feb
K24: Mar
K25: Apr
K26: May
K27: Jun
K28: Jul
K29: Aug
K30: Sep
K31: Oct
K32: Nov
K33: Dec
K34: Annual | L34: =AVERAGE(L22:L33) ->  | M34: =MAX(M22:M33) -> 0 | N34: =AVERAGE(N22:N33) ->  | O34: =MAX(O22:O33) -> 0
J36: =+A6 -> 2020 | K36: mg/Nm3 | L36: Monthly 1/2 hourly mean | M36: Monthly 1/2 hourly maximum | N36: Monthly daily mean | O36: Monthly daily maximum
J37: A3 | K37: Jan
K38: Feb
K39: Mar
K40: Apr
K41: May
K42: Jun
K43: Jul
K44: Aug
K45: Sep
K46: Oct
K47: Nov
A48: Comments : | K48: Dec
K49: Annual | L49: =AVERAGE(L37:L48) ->  | M49: =MAX(M37:M48) -> 0 | N49: =AVERAGE(N37:N48) ->  | O49: =MAX(O37:O48) -> 0
J51: =+A6 -> 2020 | K51: mg/Nm3 | L51: Monthly 1/2 hourly mean | M51: Monthly 1/2 hourly maximum | N51: Monthly daily mean | O51: Monthly daily maximum
J52: A4 | K52: Jan
K53: Feb
K54: Mar
K55: Apr
K56: May
K57: Jun
K58: Jul
K59: Aug
K60: Sep
K61: Oct
K62: Nov
K63: Dec
K64: Annual | L64: =AVERAGE(L52:L63) ->  | M64: =MAX(M52:M63) -> 0 | N64: =AVERAGE(N52:N63) ->  | O64: =MAX(O52:O63) -> 0
J66: =+A6 -> 2020 | K66: mg/Nm3 | L66: Monthly 1/2 hourly mean | M66: Monthly 1/2 hourly maximum | N66: Monthly daily mean | O66: Monthly daily maximum
J67: A5 | K67: Jan
K68: Feb
K69: Mar
K70: Apr
K71: May
K72: Jun
K73: Jul
K74: Aug
K75: Sep
K76: Oct
K77: Nov
K78: Dec
K79: Annual | L79: =AVERAGE(L67:L78) ->  | M79: =MAX(M67:M78) -> 0 | N79: =AVERAGE(N67:N78) ->  | O79: =MAX(O67:O78) -> 0

Sheet SO2
A1: =+'Cover Page'!$B$29 -> Annual Performance Report 2020 | E1: =+'Cover Page'!$B$33 -> Javelin Park Energy Recovery Facility
A3: Monitoring of Sulphur dioxide emissions | D3: Whole Installation | G3: See Notes in Cell Q3 | J3: =+A3 -> Monitoring of Sulphur dioxide emissions | N3: Per Combustion Line | Q3: Notes:
Q4: User to add logic to complete Whole installation, Table A5:G18. From the data in Per Combustion Line, Table J6:O79, subject to No. of lines installed
A5: mg/Nm3 | B5: 1/2 Hourly Reference Periods | E5: Daily Reference Periods
A6: =+'Cover Page'!C39 -> 2020 | B6: 1/2 hourly SO2 ELV | C6: Monthly 1/2 hourly mean | D6: Highest 1/2 hourly maximum | E6: Daily SO2 ELV | F6: Monthly daily mean | G6: Highest daily maximum | J6: =+A6 -> 2020 | K6: mg/Nm3 | L6: Monthly 1/2 hourly mean | M6: Monthly 1/2 hourly maximum | N6: Monthly daily mean | O6: Monthly daily maximum
A7: Jan | B7: 200 | C7: 7 | D7: 98 | E7: 50 | F7: 9.13 | G7: 12 | J7: A1 | K7: Jan | L7: 7 | M7: 98 | N7: 9.13 | O7: 12
A8: Feb | B8: 200 | C8: 11 | D8: 47 | E8: 50 | F8: 10.79 | G8: 18 | K8: Feb | L8: 11 | M8: 47 | N8: 10.79 | O8: 18
A9: Mar | B9: 200 | C9: 14 | D9: 124 | E9: 50 | F9: 14.13 | G9: 15 | K9: Mar | L9: 14 | M9: 124 | N9: 14.13 | O9: 15 | Q9: Whole Installation table A5:G18:
A10: Apr | B10: 200 | C10: 11 | D10: 41 | E10: 50 | F10: 11.04 | G10: 14 | K10: Apr | L10: 11 | M10: 41 | N10: 11.04 | O10: 14 | Q10: Mean: for 1/2 hourly and daily periods calculate mean of values across all operational combustion lines for the month
A11: May | B11: 200 | C11: 11 | D11: 28 | E11: 50 | F11: 10.22 | G11: 17 | K11: May | L11: 11 | M11: 28 | N11: 10.22 | O11: 17
A12: Jun | B12: 200 | C12: 5 | D12: 45 | E12: 50 | F12: 5.02 | G12: 6 | K12: Jun | L12: 5 | M12: 45 | N12: 5.02 | O12: 6
A13: Jul | B13: 200 | C13: 5 | D13: 42 | E13: 50 | F13: 4.67 | G13: 6 | K13: Jul | L13: 5 | M13: 42 | N13: 4.67 | O13: 6 | Q13: Maximum: for 1/2 hourly and daily periods use the highest value across all operational combustion lines for the month
A14: Aug | B14: 200 | C14: 5 | D14: 22 | E14: 50 | F14: 4.88 | G14: 5 | K14: Aug | L14: 5 | M14: 22 | N14: 4.88 | O14: 5
A15: Sep | B15: 200 | C15: 5 | D15: 19 | E15: 50 | F15: 4.54 | G15: 6 | K15: Sep | L15: 5 | M15: 19 | N15: 4.54 | O15: 6
A16: Oct | B16: 200 | C16: 12 | D16: 55 | E16: 50 | F16: 11.2115 | G16: 19 | K16: Oct | L16: 12 | M16: 55 | N16: 11.2115 | O16: 19
A17: Nov | B17: 200 | C17: 12 | D17: 59 | E17: 50 | F17: 12.291 | G17: 18 | K17: Nov | L17: 12 | M17: 59 | N17: 12.291 | O17: 18
A18: Dec | B18: 200 | C18: 19 | D18: 116 | E18: 50 | F18: 17.7336 | G18: 31 | K18: Dec | L18: 19 | M18: 116 | N18: 17.7336 | O18: 31
K19: Annual | L19: =AVERAGE(L7:L18) -> 9.75 | M19: =MAX(M7:M18) -> 124 | N19: =AVERAGE(N7:N18) -> 9.638008333 | O19: =MAX(O7:O18) -> 31
J21: =+A6 -> 2020 | K21: mg/Nm3 | L21: Monthly 1/2 hourly mean | M21: Monthly 1/2 hourly maximum | N21: Monthly daily mean | O21: Monthly daily maximum
J22: A2 | K22: Jan
K23: Feb
K24: Mar
K25: Apr
K26: May
K27: Jun
K28: Jul
K29: Aug
K30: Sep
K31: Oct
K32: Nov
K33: Dec
K34: Annual | L34: =AVERAGE(L22:L33) ->  | M34: =MAX(M22:M33) -> 0 | N34: =AVERAGE(N22:N33) ->  | O34: =MAX(O22:O33) -> 0
J36: =+A6 -> 2020 | K36: mg/Nm3 | L36: Monthly 1/2 hourly mean | M36: Monthly 1/2 hourly maximum | N36: Monthly daily mean | O36: Monthly daily maximum
J37: A3 | K37: Jan
K38: Feb
K39: Mar
K40: Apr
K41: May
K42: Jun
K43: Jul
K44: Aug
K45: Sep
K46: Oct
K47: Nov
A48: Comments : | K48: Dec
K49: Annual | L49: =AVERAGE(L37:L48) ->  | M49: =MAX(M37:M48) -> 0 | N49: =AVERAGE(N37:N48) ->  | O49: =MAX(O37:O48) -> 0
J51: =+A6 -> 2020 | K51: mg/Nm3 | L51: Monthly 1/2 hourly mean | M51: Monthly 1/2 hourly maximum | N51: Monthly daily mean | O51: Monthly daily maximum
J52: A4 | K52: Jan
K53: Feb
K54: Mar
K55: Apr
K56: May
K57: Jun
K58: Jul
K59: Aug
K60: Sep
K61: Oct
K62: Nov
K63: Dec
K64: Annual | L64: =AVERAGE(L52:L63) ->  | M64: =MAX(M52:M63) -> 0 | N64: =AVERAGE(N52:N63) ->  | O64: =MAX(O52:O63) -> 0
J66: =+A6 -> 2020 | K66: mg/Nm3 | L66: Monthly 1/2 hourly mean | M66: Monthly 1/2 hourly maximum | N66: Monthly daily mean | O66: Monthly daily maximum
J67: A5 | K67: Jan
K68: Feb
K69: Mar
K70: Apr
K71: May
K72: Jun
K73: Jul
K74: Aug
K75: Sep
K76: Oct
K77: Nov
K78: Dec
K79: Annual | L79: =AVERAGE(L67:L78) ->  | M79: =MAX(M67:M78) -> 0 | N79: =AVERAGE(N67:N78) ->  | O79: =MAX(O67:O78) -> 0

Sheet NOx
A1: =+'Cover Page'!$B$29 -> Annual Performance Report 2020 | E1: =+'Cover Page'!$B$33 -> Javelin Park Energy Recovery Facility
A3: Monitoring of Oxides of Nitrogen emissions | D3: Whole Installation | G3: See Notes in Cell Q3 | J3: =+A3 -> Monitoring of Oxides of Nitrogen emissions | N3: Per Combustion Line | Q3: Notes:
Q4: User to add logic to complete Whole installation, Table A5:G18. From the data in Per Combustion Line, Table J6:O79, subject to No. of lines installed
A5: mg/Nm3 | B5: 1/2 Hourly Reference Periods | E5: Daily Reference Periods
A6: =+'Cover Page'!C39 -> 2020 | B6: 1/2 hourly NOx ELV | C6: Monthly 1/2 hourly mean | D6: Highest 1/2 hourly maximum | E6: Daily NOx ELV | F6: Monthly daily mean | G6: Highest daily maximum | J6: =+A6 -> 2020 | K6: mg/Nm3 | L6: Monthly 1/2 hourly mean | M6: Monthly 1/2 hourly maximum | N6: Monthly daily mean | O6: Monthly daily maximum
A7: Jan | B7: 400 | C7: 154 | D7: 254 | E7: 200 | F7: 153.81 | G7: 179 | J7: A1 | K7: Jan | L7: 154 | M7: 254 | N7: 153.81 | O7: 179
A8: Feb | B8: 400 | C8: 140 | D8: 304 | E8: 200 | F8: 140.38 | G8: 157 | K8: Feb | L8: 140 | M8: 304 | N8: 140.38 | O8: 157
A9: Mar | B9: 400 | C9: 141 | D9: 239 | E9: 200 | F9: 141.1 | G9: 167 | K9: Mar | L9: 141 | M9: 239 | N9: 141.1 | O9: 167 | Q9: Whole Installation table A5:G18:
A10: Apr | B10: 400 | C10: 144 | D10: 286 | E10: 200 | F10: 144.29 | G10: 169 | K10: Apr | L10: 144 | M10: 286 | N10: 144.29 | O10: 169 | Q10: Mean: for 1/2 hourly and daily periods calculate mean of values across all operational combustion lines for the month
A11: May | B11: 400 | C11: 139 | D11: 236 | E11: 200 | F11: 139.83 | G11: 181 | K11: May | L11: 139 | M11: 236 | N11: 139.83 | O11: 181
A12: Jun | B12: 400 | C12: 130 | D12: 305 | E12: 200 | F12: 127.22 | G12: 143 | K12: Jun | L12: 130 | M12: 305 | N12: 127.22 | O12: 143
A13: Jul | B13: 400 | C13: 115 | D13: 167 | E13: 200 | F13: 114.82 | G13: 127 | K13: Jul | L13: 115 | M13: 167 | N13: 114.82 | O13: 127 | Q13: Maximum: for 1/2 hourly and daily periods use the highest value across all operational combustion lines for the month
A14: Aug | B14: 400 | C14: 115 | D14: 254 | E14: 200 | F14: 114.51 | G14: 164 | K14: Aug | L14: 115 | M14: 254 | N14: 114.51 | O14: 164
A15: Sep | B15: 400 | C15: 128 | D15: 267 | E15: 200 | F15: 125.96 | G15: 173 | K15: Sep | L15: 128 | M15: 267 | N15: 125.96 | O15: 173
A16: Oct | B16: 400 | C16: 171 | D16: 259 | E16: 200 | F16: 172.004 | G16: 185 | K16: Oct | L16: 171 | M16: 259 | N16: 172.004 | O16: 185
A17: Nov | B17: 400 | C17: 169 | D17: 273 | E17: 200 | F17: 169.121 | G17: 187 | K17: Nov | L17: 169 | M17: 273 | N17: 169.121 | O17: 187
A18: Dec | B18: 400 | C18: 178 | D18: 275 | E18: 200 | F18: 177.664 | G18: 183 | K18: Dec | L18: 178 | M18: 275 | N18: 177.664 | O18: 183
K19: Annual | L19: =AVERAGE(L7:L18) -> 143.6666667 | M19: =MAX(M7:M18) -> 305 | N19: =AVERAGE(N7:N18) -> 143.3924167 | O19: =MAX(O7:O18) -> 187
J21: =+A6 -> 2020 | K21: mg/Nm3 | L21: Monthly 1/2 hourly mean | M21: Monthly 1/2 hourly maximum | N21: Monthly daily mean | O21: Monthly daily maximum
J22: A2 | K22: Jan
K23: Feb
K24: Mar
K25: Apr
K26: May
K27: Jun
K28: Jul
K29: Aug
K30: Sep
K31: Oct
K32: Nov
K33: Dec
K34: Annual | L34: =AVERAGE(L22:L33) ->  | M34: =MAX(M22:M33) -> 0 | N34: =AVERAGE(N22:N33) ->  | O34: =MAX(O22:O33) -> 0
J36: =+A6 -> 2020 | K36: mg/Nm3 | L36: Monthly 1/2 hourly mean | M36: Monthly 1/2 hourly maximum | N36: Monthly daily mean | O36: Monthly daily maximum
J37: A3 | K37: Jan
K38: Feb
K39: Mar
K40: Apr
K41: May
K42: Jun
K43: Jul
K44: Aug
K45: Sep
K46: Oct
K47: Nov
A48: Comments : | K48: Dec
K49: Annual | L49: =AVERAGE(L37:L48) ->  | M49: =MAX(M37:M48) -> 0 | N49: =AVERAGE(N37:N48) ->  | O49: =MAX(O37:O48) -> 0
J51: =+A6 -> 2020 | K51: mg/Nm3 | L51: Monthly 1/2 hourly mean | M51: Monthly 1/2 hourly maximum | N51: Monthly daily mean | O51: Monthly daily maximum
J52: A4 | K52: Jan
K53: Feb
K54: Mar
K55: Apr
K56: May
K57: Jun
K58: Jul
K59: Aug
K60: Sep
K61: Oct
K62: Nov
K63: Dec
K64: Annual | L64: =AVERAGE(L52:L63) ->  | M64: =MAX(M52:M63) -> 0 | N64: =AVERAGE(N52:N63) ->  | O64: =MAX(O52:O63) -> 0
J66: =+A6 -> 2020 | K66: mg/Nm3 | L66: Monthly 1/2 hourly mean | M66: Monthly 1/2 hourly maximum | N66: Monthly daily mean | O66: Monthly daily maximum
J67: A5 | K67: Jan
K68: Feb
K69: Mar
K70: Apr
K71: May
K72: Jun
K73: Jul
K74: Aug
K75: Sep
K76: Oct
K77: Nov
K78: Dec
K79: Annual | L79: =AVERAGE(L67:L78) ->  | M79: =MAX(M67:M78) -> 0 | N79: =AVERAGE(N67:N78) ->  | O79: =MAX(O67:O78) -> 0

Sheet TOC
A1: =+'Cover Page'!$B$29 -> Annual Performance Report 2020 | E1: =+'Cover Page'!$B$33 -> Javelin Park Energy Recovery Facility
A3: Monitoring of Total organic carbon emissions | D3: Whole Installation | G3: See Notes in Cell Q3 | J3: =+A3 -> Monitoring of Total organic carbon emissions | N3: Per Combustion Line | Q3: Notes:
Q4: User to add logic to complete Whole installation, Table A5:G18. From the data in Per Combustion Line, Table J6:O79, subject to No. of lines installed
A5: mg/Nm3 | B5: 1/2 Hourly Reference Periods | E5: Daily Reference Periods
A6: =+'Cover Page'!C39 -> 2020 | B6: 1/2 hourly TOC ELV | C6: Monthly 1/2 hourly mean | D6: Highest 1/2 hourly maximum | E6: Daily TOC ELV | F6: Monthly daily mean | G6: Highest daily maximum | J6: =+A6 -> 2020 | K6: mg/Nm3 | L6: Monthly 1/2 hourly mean | M6: Monthly 1/2 hourly maximum | N6: Monthly daily mean | O6: Monthly daily maximum
A7: Jan | B7: 20 | C7: 0 | D7: 1 | E7: 10 | F7: -0.02 | G7: 0 | J7: A1 | K7: Jan | L7: 0 | M7: 1 | N7: -0.02 | O7: 0
A8: Feb | B8: 20 | C8: 0 | D8: 1 | E8: 10 | F8: -0.01 | G8: 0 | K8: Feb | L8: 0 | M8: 1 | N8: -0.01 | O8: 0
A9: Mar | B9: 20 | C9: 0 | D9: 1 | E9: 10 | F9: -0.71 | G9: 0 | K9: Mar | L9: 0 | M9: 1 | N9: -0.71 | O9: 0 | Q9: Whole Installation table A5:G18:
A10: Apr | B10: 20 | C10: 0 | D10: 1 | E10: 10 | F10: 0.04 | G10: 0 | K10: Apr | L10: 0 | M10: 1 | N10: 0.04 | O10: 0 | Q10: Mean: for 1/2 hourly and daily periods calculate mean of values across all operational combustion lines for the month
A11: May | B11: 20 | C11: 0 | D11: 0 | E11: 10 | F11: -0.01 | G11: 0 | K11: May | L11: 0 | M11: 0 | N11: -0.01 | O11: 0
A12: Jun | B12: 20 | C12: 0 | D12: 1 | E12: 10 | F12: 0.43 | G12: 1 | K12: Jun | L12: 0 | M12: 1 | N12: 0.43 | O12: 1
A13: Jul | B13: 20 | C13: 1 | D13: 1 | E13: 10 | F13: 0.6 | G13: 1 | K13: Jul | L13: 1 | M13: 1 | N13: 0.6 | O13: 1 | Q13: Maximum: for 1/2 hourly and daily periods use the highest value across all operational combustion lines for the month
A14: Aug | B14: 20 | C14: 1 | D14: 3 | E14: 10 | F14: 0.62 | G14: 1 | K14: Aug | L14: 1 | M14: 3 | N14: 0.62 | O14: 1
A15: Sep | B15: 20 | C15: 1 | D15: 3 | E15: 10 | F15: 0.8 | G15: 1 | K15: Sep | L15: 1 | M15: 3 | N15: 0.8 | O15: 1
A16: Oct | B16: 20 | C16: 0 | D16: 2 | E16: 10 | F16: 0.438 | G16: 1 | K16: Oct | L16: 0 | M16: 2 | N16: 0.438 | O16: 1
A17: Nov | B17: 20 | C17: 0 | D17: 1 | E17: 10 | F17: 0.0413 | G17: 0 | K17: Nov | L17: 0 | M17: 1 | N17: 0.0413 | O17: 0
A18: Dec | B18: 20 | C18: 0 | D18: 2 | E18: 10 | F18: -0.0024 | G18: 0 | K18: Dec | L18: 0 | M18: 2 | N18: -0.0024 | O18: 0
K19: Annual | L19: =AVERAGE(L7:L18) -> 0.25 | M19: =MAX(M7:M18) -> 3 | N19: =AVERAGE(N7:N18) -> 0.1847416667 | O19: =MAX(O7:O18) -> 1
J21: =+A6 -> 2020 | K21: mg/Nm3 | L21: Monthly 1/2 hourly mean | M21: Monthly 1/2 hourly maximum | N21: Monthly daily mean | O21: Monthly daily maximum
J22: A2 | K22: Jan
K23: Feb
K24: Mar
K25: Apr
K26: May
K27: Jun
K28: Jul
K29: Aug
K30: Sep
K31: Oct
K32: Nov
K33: Dec
K34: Annual | L34: =AVERAGE(L22:L33) ->  | M34: =MAX(M22:M33) -> 0 | N34: =AVERAGE(N22:N33) ->  | O34: =MAX(O22:O33) -> 0
J36: =+A6 -> 2020 | K36: mg/Nm3 | L36: Monthly 1/2 hourly mean | M36: Monthly 1/2 hourly maximum | N36: Monthly daily mean | O36: Monthly daily maximum
J37: A3 | K37: Jan
K38: Feb
K39: Mar
K40: Apr
K41: May
K42: Jun
K43: Jul
K44: Aug
K45: Sep
K46: Oct
K47: Nov
A48: Comments : | K48: Dec
K49: Annual | L49: =AVERAGE(L37:L48) ->  | M49: =MAX(M37:M48) -> 0 | N49: =AVERAGE(N37:N48) ->  | O49: =MAX(O37:O48) -> 0
J51: =+A6 -> 2020 | K51: mg/Nm3 | L51: Monthly 1/2 hourly mean | M51: Monthly 1/2 hourly maximum | N51: Monthly daily mean | O51: Monthly daily maximum
J52: A4 | K52: Jan
K53: Feb
K54: Mar
K55: Apr
K56: May
K57: Jun
K58: Jul
K59: Aug
K60: Sep
K61: Oct
K62: Nov
K63: Dec
K64: Annual | L64: =AVERAGE(L52:L63) ->  | M64: =MAX(M52:M63) -> 0 | N64: =AVERAGE(N52:N63) ->  | O64: =MAX(O52:O63) -> 0
J66: =+A6 -> 2020 | K66: mg/Nm3 | L66: Monthly 1/2 hourly mean | M66: Monthly 1/2 hourly maximum | N66: Monthly daily mean | O66: Monthly daily maximum
J67: A5 | K67: Jan
K68: Feb
K69: Mar
K70: Apr
K71: May
K72: Jun
K73: Jul
K74: Aug
K75: Sep
K76: Oct
K77: Nov
K78: Dec
K79: Annual | L79: =AVERAGE(L67:L78) ->  | M79: =MAX(M67:M78) -> 0 | N79: =AVERAGE(N67:N78) ->  | O79: =MAX(O67:O78) -> 0

Sheet Particulates
A1: =+'Cover Page'!$B$29 -> Annual Performance Report 2020 | E1: =+'Cover Page'!$B$33 -> Javelin Park Energy Recovery Facility
A3: Monitoring of Particulate matter emissions | D3: Whole Installation | G3: See Notes in Cell Q3 | J3: =+A3 -> Monitoring of Particulate matter emissions | N3: Per Combustion Line | Q3: Notes:
Q4: User to add logic to complete Whole installation, Table A5:G18. From the data in Per Combustion Line, Table J6:O79, subject to No. of lines installed
A5: mg/Nm3 | B5: 1/2 Hourly Reference Periods | E5: Daily Reference Periods
A6: =+'Cover Page'!C39 -> 2020 | B6: 1/2 hourly PM ELV | C6: Monthly 1/2 hourly mean | D6: Highest 1/2 hourly maximum | E6: Daily PM ELV | F6: Monthly daily mean | G6: Highest daily maximum | J6: =+A6 -> 2020 | K6: mg/Nm3 | L6: Monthly 1/2 hourly mean | M6: Monthly 1/2 hourly maximum | N6: Monthly daily mean | O6: Monthly daily maximum
A7: Jan | B7: 30 | C7: 0 | D7: 1 | E7: 10 | F7: 0.16 | G7: 0 | J7: A1 | K7: Jan | L7: 0 | M7: 1 | N7: 0.16 | O7: 0
A8: Feb | B8: 30 | C8: 0 | D8: 0 | E8: 10 | F8: 0.15 | G8: 0 | K8: Feb | L8: 0 | M8: 0 | N8: 0.15 | O8: 0
A9: Mar | B9: 30 | C9: 0 | D9: 0 | E9: 10 | F9: 0.16 | G9: 0 | K9: Mar | L9: 0 | M9: 0 | N9: 0.16 | O9: 0 | Q9: Whole Installation table A5:G18:
A10: Apr | B10: 30 | C10: 0 | D10: 0 | E10: 10 | F10: 0.15 | G10: 0 | K10: Apr | L10: 0 | M10: 0 | N10: 0.15 | O10: 0 | Q10: Mean: for 1/2 hourly and daily periods calculate mean of values across all operational combustion lines for the month
A11: May | B11: 30 | C11: 0 | D11: 0 | E11: 10 | F11: 0.14 | G11: 0 | K11: May | L11: 0 | M11: 0 | N11: 0.14 | O11: 0
A12: Jun | B12: 30 | C12: 0 | D12: 0 | E12: 10 | F12: 0.13 | G12: 0 | K12: Jun | L12: 0 | M12: 0 | N12: 0.13 | O12: 0
A13: Jul | B13: 30 | C13: 0 | D13: 0 | E13: 10 | F13: 0.12 | G13: 0 | K13: Jul | L13: 0 | M13: 0 | N13: 0.12 | O13: 0 | Q13: Maximum: for 1/2 hourly and daily periods use the highest value across all operational combustion lines for the month
A14: Aug | B14: 30 | C14: 0 | D14: 0 | E14: 10 | F14: 0.13 | G14: 0 | K14: Aug | L14: 0 | M14: 0 | N14: 0.13 | O14: 0
A15: Sep | B15: 30 | C15: 0 | D15: 0 | E15: 10 | F15: 0.14 | G15: 0 | K15: Sep | L15: 0 | M15: 0 | N15: 0.14 | O15: 0
A16: Oct | B16: 30 | C16: 0 | D16: 0 | E16: 10 | F16: 0.1355 | G16: 0 | K16: Oct | L16: 0 | M16: 0 | N16: 0.1355 | O16: 0
A17: Nov | B17: 30 | C17: 0 | D17: 0 | E17: 10 | F17: 0.126 | G17: 0 | K17: Nov | L17: 0 | M17: 0 | N17: 0.126 | O17: 0
A18: Dec | B18: 30 | C18: 0 | D18: 0 | E18: 10 | F18: 0.1344 | G18: 0 | K18: Dec | L18: 0 | M18: 0 | N18: 0.1344 | O18: 0
K19: Annual | L19: =AVERAGE(L7:L18) -> 0 | M19: =MAX(M7:M18) -> 1 | N19: =AVERAGE(N7:N18) -> 0.1396583333 | O19: =MAX(O7:O18) -> 0
J21: =+A6 -> 2020 | K21: mg/Nm3 | L21: Monthly 1/2 hourly mean | M21: Monthly 1/2 hourly maximum | N21: Monthly daily mean | O21: Monthly daily maximum
J22: A2 | K22: Jan
K23: Feb
K24: Mar
K25: Apr
K26: May
K27: Jun
K28: Jul
K29: Aug
K30: Sep
K31: Oct
K32: Nov
K33: Dec
K34: Annual | L34: =AVERAGE(L22:L33) ->  | M34: =MAX(M22:M33) -> 0 | N34: =AVERAGE(N22:N33) ->  | O34: =MAX(O22:O33) -> 0
J36: =+A6 -> 2020 | K36: mg/Nm3 | L36: Monthly 1/2 hourly mean | M36: Monthly 1/2 hourly maximum | N36: Monthly daily mean | O36: Monthly daily maximum
J37: A3 | K37: Jan
K38: Feb
K39: Mar
K40: Apr
K41: May
K42: Jun
K43: Jul
K44: Aug
K45: Sep
K46: Oct
K47: Nov
A48: Comments : | K48: Dec
K49: Annual | L49: =AVERAGE(L37:L48) ->  | M49: =MAX(M37:M48) -> 0 | N49: =AVERAGE(N37:N48) ->  | O49: =MAX(O37:O48) -> 0
J51: =+A6 -> 2020 | K51: mg/Nm3 | L51: Monthly 1/2 hourly mean | M51: Monthly 1/2 hourly maximum | N51: Monthly daily mean | O51: Monthly daily maximum
J52: A4 | K52: Jan
K53: Feb
K54: Mar
K55: Apr
K56: May
K57: Jun
K58: Jul
K59: Aug
K60: Sep
K61: Oct
K62: Nov
K63: Dec
K64: Annual | L64: =AVERAGE(L52:L63) ->  | M64: =MAX(M52:M63) -> 0 | N64: =AVERAGE(N52:N63) ->  | O64: =MAX(O52:O63) -> 0
J66: =+A6 -> 2020 | K66: mg/Nm3 | L66: Monthly 1/2 hourly mean | M66: Monthly 1/2 hourly maximum | N66: Monthly daily mean | O66: Monthly daily maximum
J67: A5 | K67: Jan
K68: Feb
K69: Mar
K70: Apr
K71: May
K72: Jun
K73: Jul
K74: Aug
K75: Sep
K76: Oct
K77: Nov
K78: Dec
K79: Annual | L79: =AVERAGE(L67:L78) ->  | M79: =MAX(M67:M78) -> 0 | N79: =AVERAGE(N67:N78) ->  | O79: =MAX(O67:O78) -> 0

Sheet CO 0.5hourly
A1: =+'Cover Page'!$B$29 -> Annual Performance Report 2020 | E1: =+'Cover Page'!$B$33 -> Javelin Park Energy Recovery Facility
A3: Monitoring of Carbon Monoxide (half hourly) | D3: Whole Installation | G3: See Notes in Cell Q3 | J3: =+A3 -> Monitoring of Carbon Monoxide (half hourly) | N3: Per Combustion Line | Q3: Notes:
Q4: User to add logic to complete Whole installation, Table A5:G18. From the data in Per Combustion Line, Table J6:O79, subject to No. of lines installed
A5: mg/Nm3 | B5: 1/2 Hourly Reference Periods | E5: Daily Reference Periods
A6: =+'Cover Page'!C39 -> 2020 | B6: 1/2 hourly CO ELV | C6: Monthly 1/2 hourly mean | D6: Highest 1/2 hourly maximum | E6: Daily CO ELV | F6: Monthly daily mean | G6: Highest daily maximum | J6: =+A6 -> 2020 | K6: mg/Nm3 | L6: Monthly 1/2 hourly mean | M6: Monthly 1/2 hourly maximum | N6: Monthly daily mean | O6: Monthly daily maximum
A7: Jan | B7: 100 | C7: 0 | D7: 52 | E7: 50 | F7: 0.13 | G7: 0 | J7: A1 | K7: Jan | L7: 0 | M7: 52 | N7: 0.13 | O7: 0
A8: Feb | B8: =+B7 -> 100 | C8: 0 | D8: 4 | E8: =+E7 -> 50 | F8: 0 | G8: 0 | K8: Feb | L8: 0 | M8: 4 | N8: 0 | O8: 0
A9: Mar | B9: =+B8 -> 100 | C9: 0 | D9: 79 | E9: =+E8 -> 50 | F9: 0.1 | G9: 0 | K9: Mar | L9: 0 | M9: 79 | N9: 0.1 | O9: 0 | Q9: Whole Installation table A5:G18:
A10: Apr | B10: 100 | C10: 0 | D10: 94 | E10: 50 | F10: 0.12 | G10: 1 | K10: Apr | L10: 0 | M10: 94 | N10: 0.12 | O10: 1 | Q10: Mean: for 1/2 hourly and daily periods calculate mean of values across all operational combustion lines for the month
A11: May | B11: 100 | C11: 0 | D11: 2 | E11: 50 | F11: 0 | G11: 0 | K11: May | L11: 0 | M11: 2 | N11: 0 | O11: 0
A12: Jun | B12: 100 | C12: 0 | D12: 83 | E12: 50 | F12: 0.17 | G12: 0 | K12: Jun | L12: 0 | M12: 83 | N12: 0.17 | O12: 0
A13: Jul | B13: 100 | C13: 0 | D13: 80 | E13: 50 | F13: 0.14 | G13: 1 | K13: Jul | L13: 0 | M13: 80 | N13: 0.14 | O13: 1 | Q13: Maximum: for 1/2 hourly and daily periods use the highest value across all operational combustion lines for the month
A14: Aug | B14: 100 | C14: 1 | D14: 322 | E14: 50 | F14: 0.71 | G14: 8 | K14: Aug | L14: 1 | M14: 322 | N14: 0.71 | O14: 8
A15: Sep | B15: 100 | C15: 0 | D15: 148 | E15: 50 | F15: 0.27 | G15: 6 | K15: Sep | L15: 0 | M15: 148 | N15: 0.27 | O15: 6
A16: Oct | B16: 100 | C16: 0 | D16: 45 | E16: 50 | F16: -0.2815 | G16: 0 | K16: Oct | L16: 0 | M16: 45 | N16: -0.2815 | O16: 0
A17: Nov | B17: 100 | C17: 0 | D17: 18 | E17: 50 | F17: -0.537 | G17: 0 | K17: Nov | L17: 0 | M17: 18 | N17: -0.537 | O17: 0
A18: Dec | B18: 100 | C18: 0 | D18: 150 | E18: 50 | F18: -0.468 | G18: 0 | K18: Dec | L18: 0 | M18: 150 | N18: -0.468 | O18: 0
K19: Annual | L19: =AVERAGE(L7:L18) -> 0.08333333333 | M19: =MAX(M7:M18) -> 322 | N19: =AVERAGE(N7:N18) -> 0.02945833333 | O19: =MAX(O7:O18) -> 8
J21: =+A6 -> 2020 | K21: mg/Nm3 | L21: Monthly 1/2 hourly mean | M21: Monthly 1/2 hourly maximum | N21: Monthly daily mean | O21: Monthly daily maximum
J22: A2 | K22: Jan
K23: Feb
K24: Mar
K25: Apr
K26: May
K27: Jun
K28: Jul
K29: Aug
K30: Sep
K31: Oct
K32: Nov
K33: Dec
K34: Annual | L34: =AVERAGE(L22:L33) ->  | M34: =MAX(M22:M33) -> 0 | N34: =AVERAGE(N22:N33) ->  | O34: =MAX(O22:O33) -> 0
J36: =+A6 -> 2020 | K36: mg/Nm3 | L36: Monthly 1/2 hourly mean | M36: Monthly 1/2 hourly maximum | N36: Monthly daily mean | O36: Monthly daily maximum
J37: A3 | K37: Jan
K38: Feb
K39: Mar
K40: Apr
K41: May
K42: Jun
K43: Jul
K44: Aug
K45: Sep
K46: Oct
K47: Nov
A48: Comments : | K48: Dec
K49: Annual | L49: =AVERAGE(L37:L48) ->  | M49: =MAX(M37:M48) -> 0 | N49: =AVERAGE(N37:N48) ->  | O49: =MAX(O37:O48) -> 0
J51: =+A6 -> 2020 | K51: mg/Nm3 | L51: Monthly 1/2 hourly mean | M51: Monthly 1/2 hourly maximum | N51: Monthly daily mean | O51: Monthly daily maximum
J52: A4 | K52: Jan
K53: Feb
K54: Mar
K55: Apr
K56: May
K57: Jun
K58: Jul
K59: Aug
K60: Sep
K61: Oct
K62: Nov
K63: Dec
K64: Annual | L64: =AVERAGE(L52:L63) ->  | M64: =MAX(M52:M63) -> 0 | N64: =AVERAGE(N52:N63) ->  | O64: =MAX(O52:O63) -> 0
J66: =+A6 -> 2020 | K66: mg/Nm3 | L66: Monthly 1/2 hourly mean | M66: Monthly 1/2 hourly maximum | N66: Monthly daily mean | O66: Monthly daily maximum
J67: A5 | K67: Jan
K68: Feb
K69: Mar
K70: Apr
K71: May
K72: Jun
K73: Jul
K74: Aug
K75: Sep
K76: Oct
K77: Nov
K78: Dec
K79: Annual | L79: =AVERAGE(L67:L78) ->  | M79: =MAX(M67:M78) -> 0 | N79: =AVERAGE(N67:N78) ->  | O79: =MAX(O67:O78) -> 0

Sheet NH3
A1: =+'Cover Page'!$B$29 -> Annual Performance Report 2020 | E1: =+'Cover Page'!$B$33 -> Javelin Park Energy Recovery Facility
A3: Monitoring of Ammnonia emissions | D3: Whole Installation | G3: See Notes in Cell Q3 | J3: =+A3 -> Monitoring of Ammnonia emissions | N3: Per Combustion Line | Q3: Notes:
Q4: User to add logic to complete Whole installation, Table A5:G18. From the data in Per Combustion Line, Table J6:O79, subject to No. of lines installed
A5: mg/Nm3 | B5: 1/2 Hourly Reference Periods | E5: Daily Reference Periods
A6: =+'Cover Page'!C39 -> 2020 | B6: 1/2 hourly NH3 ELV | C6: Monthly 1/2 hourly mean | D6: Highest 1/2 hourly maximum | E6: Daily NH3 ELV | F6: Monthly daily mean | G6: Highest daily maximum | J6: =+A6 -> 2020 | K6: mg/Nm3 | L6: Monthly 1/2 hourly mean | M6: Monthly 1/2 hourly maximum | N6: Monthly daily mean | O6: Monthly daily maximum
A7: Jan | B7: 0 | C7: 1 | D7: 4 | E7: 0 | F7: 1.11 | G7: 2 | J7: A1 | K7: Jan | L7: 1 | M7: 4 | N7: 1.11 | O7: 2
A8: Feb | B8: =+B7 -> 0 | C8: 1 | D8: 5 | E8: 0 | F8: 1.34 | G8: 2 | K8: Feb | L8: 1 | M8: 5 | N8: 1.34 | O8: 2
A9: Mar | B9: =+B8 -> 0 | C9: 1 | D9: 6 | E9: 0 | F9: 1.34 | G9: 2 | K9: Mar | L9: 1 | M9: 6 | N9: 1.34 | O9: 2 | Q9: Whole Installation table A5:G18:
A10: Apr | B10: 0 | C10: 2 | D10: 8 | E10: 0 | F10: 1.75 | G10: 4 | K10: Apr | L10: 2 | M10: 8 | N10: 1.75 | O10: 4 | Q10: Mean: for 1/2 hourly and daily periods calculate mean of values across all operational combustion lines for the month
A11: May | B11: 0 | C11: 2 | D11: 7 | E11: 0 | F11: 2.3 | G11: 4 | K11: May | L11: 2 | M11: 7 | N11: 2.3 | O11: 4
A12: Jun | B12: 0 | C12: 2 | D12: 6 | E12: 0 | F12: 2.17 | G12: 4 | K12: Jun | L12: 2 | M12: 6 | N12: 2.17 | O12: 4
A13: Jul | B13: 0 | C13: 2 | D13: 4 | E13: 0 | F13: 1.75 | G13: 3 | K13: Jul | L13: 2 | M13: 4 | N13: 1.75 | O13: 3 | Q13: Maximum: for 1/2 hourly and daily periods use the highest value across all operational combustion lines for the month
A14: Aug | B14: 0 | C14: 1 | D14: 6 | E14: 0 | F14: 1.41 | G14: 2 | K14: Aug | L14: 1 | M14: 6 | N14: 1.41 | O14: 2
A15: Sep | B15: 0 | C15: 1 | D15: 7 | E15: 0 | F15: 1.28 | G15: 3 | K15: Sep | L15: 1 | M15: 7 | N15: 1.28 | O15: 3
A16: Oct | B16: 0 | C16: 1 | D16: 6 | E16: 0 | F16: 0.571 | G16: 3 | K16: Oct | L16: 1 | M16: 6 | N16: 0.571 | O16: 3
A17: Nov | B17: 0 | C17: 0 | D17: 3 | E17: 0 | F17: 0.42 | G17: 1 | K17: Nov | L17: 0 | M17: 3 | N17: 0.42 | O17: 1
A18: Dec | B18: 0 | C18: 1 | D18: 3 | E18: 0 | F18: 0.68 | G18: 1 | K18: Dec | L18: 1 | M18: 3 | N18: 0.68 | O18: 1
K19: Annual | L19: =AVERAGE(L7:L18) -> 1.25 | M19: =MAX(M7:M18) -> 8 | N19: =AVERAGE(N7:N18) -> 1.343416667 | O19: =MAX(O7:O18) -> 4
J21: =+A6 -> 2020 | K21: mg/Nm3 | L21: Monthly 1/2 hourly mean | M21: Monthly 1/2 hourly maximum | N21: Monthly daily mean | O21: Monthly daily maximum
J22: A2 | K22: Jan
K23: Feb
K24: Mar
K25: Apr
K26: May
K27: Jun
K28: Jul
K29: Aug
K30: Sep
K31: Oct
K32: Nov
K33: Dec
K34: Annual | L34: =AVERAGE(L22:L33) ->  | M34: =MAX(M22:M33) -> 0 | N34: =AVERAGE(N22:N33) ->  | O34: =MAX(O22:O33) -> 0
J36: =+A6 -> 2020 | K36: mg/Nm3 | L36: Monthly 1/2 hourly mean | M36: Monthly 1/2 hourly maximum | N36: Monthly daily mean | O36: Monthly daily maximum
J37: A3 | K37: Jan
K38: Feb
K39: Mar
K40: Apr
K41: May
K42: Jun
K43: Jul
K44: Aug
K45: Sep
K46: Oct
K47: Nov
A48: Comments : | K48: Dec
A49: An indicated ELV value of zero in the table above means that no ammonia limit is set in the permit. | K49: Annual | L49: =AVERAGE(L37:L48) ->  | M49: =MAX(M37:M48) -> 0 | N49: =AVERAGE(N37:N48) ->  | O49: =MAX(O37:O48) -> 0
J51: =+A6 -> 2020 | K51: mg/Nm3 | L51: Monthly 1/2 hourly mean | M51: Monthly 1/2 hourly maximum | N51: Monthly daily mean | O51: Monthly daily maximum
J52: A4 | K52: Jan
K53: Feb
K54: Mar
K55: Apr
K56: May
K57: Jun
K58: Jul
K59: Aug
K60: Sep
K61: Oct
K62: Nov
K63: Dec
K64: Annual | L64: =AVERAGE(L52:L63) ->  | M64: =MAX(M52:M63) -> 0 | N64: =AVERAGE(N52:N63) ->  | O64: =MAX(O52:O63) -> 0
J66: =+A6 -> 2020 | K66: mg/Nm3 | L66: Monthly 1/2 hourly mean | M66: Monthly 1/2 hourly maximum | N66: Monthly daily mean | O66: Monthly daily maximum
J67: A5 | K67: Jan
K68: Feb
K69: Mar
K70: Apr
K71: May
K72: Jun
K73: Jul
K74: Aug
K75: Sep
K76: Oct
K77: Nov
K78: Dec
K79: Annual | L79: =AVERAGE(L67:L78) ->  | M79: =MAX(M67:M78) -> 0 | N79: =AVERAGE(N67:N78) ->  | O79: =MAX(O67:O78) -> 0
